[Event "*** MasterClass Titled Tuesday Blitz"]
[Site "Chess.com"]
[Date "2017.12.05"]
[Round "1"]
[White "Caisachess"]
[Black "ScotchGameopening"]
[Result "1-0"]
[WhiteElo "2339"]
[BlackElo "800"]
[TimeControl "180+2"]
[EndTime "14:16:24 PST"]
[Termination "Caisachess won by resignation"]

1. e4 {[%clk 0:02:59.5]} 1... c5 {[%clk 0:03:00.1]} 2. c3 {[%clk 0:03:00.5]}
2... Nc6 {[%clk 0:03:00.2]} 3. d4 {[%clk 0:03:01]} 3... cxd4 {[%clk 0:03:00.8]}
4. cxd4 {[%clk 0:03:02.4]} 4... e6 {[%clk 0:03:01.5]} 5. Nf3 {[%clk 0:03:02.9]}
5... d5 {[%clk 0:03:01.5]} 6. exd5 {[%clk 0:03:03.6]} 6... exd5 {[%clk
0:03:01.5]} 7. Nc3 {[%clk 0:03:04.6]} 7... Nf6 {[%clk 0:03:00.7]} 8. h3 {[%clk
0:03:05.7]} 8... b6 {[%clk 0:02:57]} 9. Bb5 {[%clk 0:03:05.2]} 9... Bb7 {[%clk
0:02:55.3]} 10. Ne5 {[%clk 0:03:06.2]} 10... Qd6 {[%clk 0:02:48.1]} 11. Bf4
{[%clk 0:03:04.8]} 11... a6 {[%clk 0:02:45.3]} 12. Bxc6+ {[%clk 0:02:58.9]}
12... Bxc6 {[%clk 0:02:46]} 13. Ng6 {[%clk 0:02:59.6]} 1-0

[Event "*** MasterClass Titled Tuesday Blitz"]
[Site "Chess.com"]
[Date "2017.12.05"]
[Round "1"]
[White "jncool68"]
[Black "pbaglioni"]
[Result "1-0"]
[WhiteElo "2448"]
[BlackElo "1441"]
[TimeControl "180+2"]
[EndTime "14:16:28 PST"]
[Termination "jncool68 won by resignation"]

1. e4 {[%clk 0:03:01.9]} 1... e5 {[%clk 0:03:00.9]} 2. Nf3 {[%clk 0:03:02.6]}
2... d6 {[%clk 0:03:01.4]} 3. d4 {[%clk 0:03:01.6]} 3... Bg4 {[%clk 0:02:57.8]}
4. dxe5 {[%clk 0:03:01.8]} 4... Bxf3 {[%clk 0:02:58.9]} 5. Qxf3 {[%clk
0:03:02.7]} 5... dxe5 {[%clk 0:03:00.2]} 6. Bc4 {[%clk 0:03:03.7]} 6... Qf6
{[%clk 0:03:01.6]} 7. Qb3 {[%clk 0:03:03.1]} 7... b6 {[%clk 0:03:02.7]} 8. Nc3
{[%clk 0:03:00.6]} 8... Ne7 {[%clk 0:03:00.3]} 9. Nb5 {[%clk 0:02:57.3]} 9...
Na6 {[%clk 0:02:57.6]} 10. O-O {[%clk 0:02:55.9]} 10... c6 {[%clk 0:02:56.2]}
11. Bxf7+ {[%clk 0:02:54.1]} 11... Qxf7 {[%clk 0:02:55.1]} 12. Nd6+ {[%clk
0:02:54.1]} 1-0

[Event "*** MasterClass Titled Tuesday Blitz"]
[Site "Chess.com"]
[Date "2017.12.05"]
[Round "1"]
[White "AbdAlAgathos"]
[Black "yazid36"]
[Result "1-0"]
[WhiteElo "2311"]
[BlackElo "685"]
[TimeControl "180+2"]
[EndTime "14:16:33 PST"]
[Termination "AbdAlAgathos won by checkmate"]

1. e4 {[%clk 0:03:00.2]} 1... d6 {[%clk 0:03:00.8]} 2. d4 {[%clk 0:02:58.7]}
2... e5 {[%clk 0:03:00.9]} 3. Nf3 {[%clk 0:02:59]} 3... f6 {[%clk 0:02:58.3]} 4.
Bc4 {[%clk 0:02:53]} 4... d5 {[%clk 0:02:55.8]} 5. Bxd5 {[%clk 0:02:53.3]} 5...
Nh6 {[%clk 0:02:53.4]} 6. dxe5 {[%clk 0:02:53]} 6... fxe5 {[%clk 0:02:52.6]} 7.
Nxe5 {[%clk 0:02:52.3]} 7... Bd6 {[%clk 0:02:47.3]} 8. Qh5+ {[%clk 0:02:51.2]}
8... g6 {[%clk 0:02:47.5]} 9. Nxg6 {[%clk 0:02:46.2]} 9... Rf8 {[%clk
0:02:42.7]} 10. Nxf8+ {[%clk 0:02:46.3]} 10... Kxf8 {[%clk 0:02:43.8]} 11. Bxh6+
{[%clk 0:02:46.8]} 11... Ke7 {[%clk 0:02:37.8]} 12. Qf7# {[%clk 0:02:47.6]} 1-0

[Event "*** MasterClass Titled Tuesday Blitz"]
[Site "Chess.com"]
[Date "2017.12.05"]
[Round "1"]
[White "kleinebeer98"]
[Black "Ebnou1987"]
[Result "1-0"]
[WhiteElo "2465"]
[BlackElo "1545"]
[TimeControl "180+2"]
[EndTime "14:17:01 PST"]
[Termination "kleinebeer98 won by checkmate"]

1. e4 {[%clk 0:02:54.6]} 1... e5 {[%clk 0:03:00.8]} 2. Qh5 {[%clk 0:02:49.6]}
2... Nc6 {[%clk 0:02:55.8]} 3. Bc4 {[%clk 0:02:46.5]} 3... Qe7 {[%clk
0:02:54.6]} 4. Nc3 {[%clk 0:02:46.9]} 4... Nf6 {[%clk 0:02:54.9]} 5. Qd1 {[%clk
0:02:45.4]} 5... g6 {[%clk 0:02:55.2]} 6. d3 {[%clk 0:02:44.6]} 6... Bg7 {[%clk
0:02:55.9]} 7. Bg5 {[%clk 0:02:45.6]} 7... d6 {[%clk 0:02:51]} 8. Nd5 {[%clk
0:02:44.4]} 8... Qd8 {[%clk 0:02:50.8]} 9. Qf3 {[%clk 0:02:42.1]} 9... Nd4
{[%clk 0:02:46.1]} 10. Nxf6+ {[%clk 0:02:38]} 10... Kf8 {[%clk 0:02:33]} 11.
Nxh7+ {[%clk 0:02:31.5]} 11... Rxh7 {[%clk 0:02:30.2]} 12. Qxf7# {[%clk
0:02:33.3]} 1-0

[Event "*** MasterClass Titled Tuesday Blitz"]
[Site "Chess.com"]
[Date "2017.12.05"]
[Round "1"]
[White "rochachess01"]
[Black "Swarnapuri"]
[Result "0-1"]
[WhiteElo "1323"]
[BlackElo "2412"]
[TimeControl "180+2"]
[EndTime "14:17:36 PST"]
[Termination "Swarnapuri won by checkmate"]

1. e4 {[%clk 0:03:00.9]} 1... Nc6 {[%clk 0:03:01.5]} 2. Nf3 {[%clk 0:03:01.7]}
2... d6 {[%clk 0:03:01.8]} 3. d4 {[%clk 0:03:02.9]} 3... Nf6 {[%clk 0:03:03.7]}
4. Nc3 {[%clk 0:03:02.9]} 4... Bg4 {[%clk 0:03:04.3]} 5. e5 {[%clk 0:03:02]}
5... dxe5 {[%clk 0:03:04.4]} 6. d5 {[%clk 0:02:59]} 6... Nd4 {[%clk 0:03:02.1]}
7. h3 {[%clk 0:02:55.9]} 7... Bxf3 {[%clk 0:02:57.3]} 8. gxf3 {[%clk 0:02:55.4]}
8... Nxd5 {[%clk 0:02:58.9]} 9. Be3 {[%clk 0:02:43.3]} 9... Nxe3 {[%clk
0:02:42.8]} 10. fxe3 {[%clk 0:02:43.3]} 10... Nf5 {[%clk 0:02:43.4]} 11. e4
{[%clk 0:02:21.3]} 11... Nd4 {[%clk 0:02:40.1]} 12. Qd2 {[%clk 0:02:06.5]} 12...
Nxf3+ {[%clk 0:02:30.4]} 13. Kd1 {[%clk 0:02:04.2]} 13... Qxd2# {[%clk
0:02:28.9]} 0-1

[Event "*** MasterClass Titled Tuesday Blitz"]
[Site "Chess.com"]
[Date "2017.12.05"]
[Round "1"]
[White "ncdogan"]
[Black "ZABDIELBLANCO"]
[Result "1-0"]
[WhiteElo "2402"]
[BlackElo "1216"]
[TimeControl "180+2"]
[EndTime "14:17:45 PST"]
[Termination "ncdogan won by resignation"]

1. d4 {[%clk 0:02:39.9]} 1... c6 {[%clk 0:02:58.6]} 2. Nf3 {[%clk 0:02:40.5]}
2... d5 {[%clk 0:03:00.1]} 3. c4 {[%clk 0:02:41.1]} 3... e6 {[%clk 0:03:00.5]}
4. e3 {[%clk 0:02:41.5]} 4... b5 {[%clk 0:02:58.8]} 5. cxb5 {[%clk 0:02:42]}
5... cxb5 {[%clk 0:02:59.4]} 6. Bxb5+ {[%clk 0:02:43.6]} 6... Bd7 {[%clk
0:02:59.7]} 7. Bxd7+ {[%clk 0:02:44]} 7... Nxd7 {[%clk 0:03:00.9]} 8. O-O {[%clk
0:02:45.9]} 8... Bd6 {[%clk 0:03:01]} 9. Nc3 {[%clk 0:02:45.1]} 9... Ngf6 {[%clk
0:03:02.1]} 10. Bd2 {[%clk 0:02:43]} 10... O-O {[%clk 0:03:03.4]} 11. Rc1 {[%clk
0:02:32.5]} 11... Qa5 {[%clk 0:03:02.1]} 12. Qe2 {[%clk 0:02:26.3]} 12... Rfc8
{[%clk 0:02:56.3]} 13. Nb5 {[%clk 0:02:16.7]} 13... Qb6 {[%clk 0:02:54.4]} 14.
Nxd6 {[%clk 0:02:17]} 14... Qxd6 {[%clk 0:02:53.4]} 15. Rxc8+ {[%clk 0:02:17.9]}
15... Rxc8 {[%clk 0:02:53.7]} 16. Rc1 {[%clk 0:02:19.8]} 16... Ne4 {[%clk
0:02:52.4]} 17. Rxc8+ {[%clk 0:02:19.2]} 17... Nf8 {[%clk 0:02:53.5]} 18. a3
{[%clk 0:02:15.2]} 18... Qd7 {[%clk 0:02:49.5]} 19. Qa6 {[%clk 0:02:12.1]} 19...
h6 {[%clk 0:02:48]} 20. Bb4 {[%clk 0:02:11.4]} 20... Qe7 {[%clk 0:02:45.8]} 1-0

[Event "*** MasterClass Titled Tuesday Blitz"]
[Site "Chess.com"]
[Date "2017.12.05"]
[Round "1"]
[White "NF31415926"]
[Black "jjosu"]
[Result "0-1"]
[WhiteElo "1999"]
[BlackElo "2513"]
[TimeControl "180+2"]
[EndTime "14:17:46 PST"]
[Termination "jjosu won by resignation"]

1. e4 {[%clk 0:03:01.9]} 1... e5 {[%clk 0:02:58.6]} 2. Nf3 {[%clk 0:03:03.1]}
2... Nc6 {[%clk 0:03:00.2]} 3. Bc4 {[%clk 0:03:04.1]} 3... Nf6 {[%clk
0:03:01.1]} 4. Ng5 {[%clk 0:03:02.7]} 4... d5 {[%clk 0:03:02.1]} 5. exd5 {[%clk
0:03:03.6]} 5... Na5 {[%clk 0:03:03.7]} 6. Bb5+ {[%clk 0:03:04.7]} 6... c6
{[%clk 0:03:05.3]} 7. dxc6 {[%clk 0:03:05.9]} 7... bxc6 {[%clk 0:03:07.2]} 8.
Qf3 {[%clk 0:03:06.4]} 8... Be7 {[%clk 0:03:07.5]} 9. d3 {[%clk 0:03:01.1]} 9...
O-O {[%clk 0:03:04.5]} 10. Ba4 {[%clk 0:03:01.6]} 10... h6 {[%clk 0:03:03.9]}
11. Ne4 {[%clk 0:03:02.6]} 11... Nd5 {[%clk 0:03:05.2]} 12. Bb3 {[%clk
0:03:02.8]} 12... Nxb3 {[%clk 0:03:03.4]} 13. axb3 {[%clk 0:03:04.7]} 13... f5
{[%clk 0:03:03.9]} 14. Nec3 {[%clk 0:03:00.9]} 14... Nb4 {[%clk 0:03:05.1]} 15.
Na3 {[%clk 0:03:00.6]} 15... Bb7 {[%clk 0:02:56.7]} 16. Qe2 {[%clk 0:02:59]}
16... Bd6 {[%clk 0:02:57.6]} 17. Bd2 {[%clk 0:02:58.2]} 17... Bc7 {[%clk
0:02:56.9]} 18. O-O {[%clk 0:02:54.6]} 18... c5 {[%clk 0:02:58.1]} 19. Nd1
{[%clk 0:02:53.8]} 19... Qd5 {[%clk 0:02:58.9]} 20. Ne3 {[%clk 0:02:52.2]} 20...
Qd7 {[%clk 0:02:58.3]} 21. Bxb4 {[%clk 0:02:52.5]} 21... cxb4 {[%clk 0:02:59.7]}
22. Nac4 {[%clk 0:02:53.5]} 22... a5 {[%clk 0:02:59.5]} 23. Kh1 {[%clk
0:02:49.5]} 23... f4 {[%clk 0:02:58.8]} 24. Nd1 {[%clk 0:02:48.7]} 24... f3
{[%clk 0:03:00.1]} 25. Qe3 {[%clk 0:02:31.9]} 25... fxg2+ {[%clk 0:03:01.9]} 26.
Kg1 {[%clk 0:02:33.3]} 26... gxf1=Q+ {[%clk 0:03:03.8]} 27. Kxf1 {[%clk
0:02:35.2]} 27... Qg4 {[%clk 0:03:03.7]} 28. Nxe5 {[%clk 0:02:24.5]} 28... Qg2+
{[%clk 0:03:02.3]} 29. Ke1 {[%clk 0:02:24.9]} 29... Bxe5 {[%clk 0:03:03.7]} 0-1

[Event "*** MasterClass Titled Tuesday Blitz"]
[Site "Chess.com"]
[Date "2017.12.05"]
[Round "1"]
[White "platy3"]
[Black "fox3ezrail"]
[Result "1-0"]
[WhiteElo "2510"]
[BlackElo "1963"]
[TimeControl "180+2"]
[EndTime "14:18:23 PST"]
[Termination "platy3 won by checkmate"]

1. e4 {[%clk 0:02:59.1]} 1... e5 {[%clk 0:03:00.1]} 2. Nf3 {[%clk 0:02:59.8]}
2... Nc6 {[%clk 0:03:00.8]} 3. Bb5 {[%clk 0:03:01.1]} 3... a6 {[%clk 0:03:00.8]}
4. Ba4 {[%clk 0:03:02]} 4... d6 {[%clk 0:02:57.7]} 5. O-O {[%clk 0:03:01.5]}
5... b5 {[%clk 0:02:58.9]} 6. Bb3 {[%clk 0:03:02.3]} 6... Nf6 {[%clk 0:03:00.3]}
7. Ng5 {[%clk 0:02:58.9]} 7... Be6 {[%clk 0:02:56.4]} 8. Bxe6 {[%clk 0:02:56.7]}
8... fxe6 {[%clk 0:02:57.6]} 9. Nxe6 {[%clk 0:02:58.6]} 9... Qe7 {[%clk
0:02:58.9]} 10. Nxf8 {[%clk 0:02:59.4]} 10... Rxf8 {[%clk 0:02:56.5]} 11. d3
{[%clk 0:03:00.2]} 11... O-O-O {[%clk 0:02:55.4]} 12. a4 {[%clk 0:03:00.8]}
12... Kd7 {[%clk 0:02:54.3]} 13. axb5 {[%clk 0:03:01.5]} 13... axb5 {[%clk
0:02:55.7]} 14. Nc3 {[%clk 0:03:02.6]} 14... b4 {[%clk 0:02:55.8]} 15. Nd5
{[%clk 0:03:00.3]} 15... Nxd5 {[%clk 0:02:56.9]} 16. exd5 {[%clk 0:02:58.6]}
16... Nd4 {[%clk 0:02:56.4]} 17. Qg4+ {[%clk 0:02:54.5]} 17... Ke8 {[%clk
0:02:55.6]} 18. c3 {[%clk 0:02:44.5]} 18... bxc3 {[%clk 0:02:55.1]} 19. bxc3
{[%clk 0:02:44.1]} 19... Nb3 {[%clk 0:02:56.3]} 20. Qa4+ {[%clk 0:02:43.4]}
20... Kf7 {[%clk 0:02:54.3]} 21. Qxb3 {[%clk 0:02:43.5]} 21... Kg8 {[%clk
0:02:55.7]} 22. Be3 {[%clk 0:02:44.1]} 22... Qh4 {[%clk 0:02:54.1]} 23. Qc4
{[%clk 0:02:43.7]} 23... Rf7 {[%clk 0:02:54]} 24. Qxh4 {[%clk 0:02:44]} 24...
Rdf8 {[%clk 0:02:53.4]} 25. Ra7 {[%clk 0:02:44]} 25... Kh8 {[%clk 0:02:32.7]}
26. Qc4 {[%clk 0:02:44]} 26... Rc8 {[%clk 0:02:31.9]} 27. f4 {[%clk 0:02:43.3]}
27... exf4 {[%clk 0:02:32]} 28. Rxf4 {[%clk 0:02:44.2]} 28... Rxf4 {[%clk
0:02:32.5]} 29. Qxc7 {[%clk 0:02:42]} 29... Rcf8 {[%clk 0:02:28.2]} 30. Qxg7#
{[%clk 0:02:41.4]} 1-0

[Event "*** MasterClass Titled Tuesday Blitz"]
[Site "Chess.com"]
[Date "2017.12.05"]
[Round "1"]
[White "nonsoderrick"]
[Black "cheese111"]
[Result "0-1"]
[WhiteElo "1226"]
[BlackElo "2402"]
[TimeControl "180+2"]
[EndTime "14:18:55 PST"]
[Termination "cheese111 won by resignation"]

1. d4 {[%clk 0:03:00.1]} 1... d5 {[%clk 0:02:59.8]} 2. e3 {[%clk 0:03:00.8]}
2... Nf6 {[%clk 0:03:00.1]} 3. Nf3 {[%clk 0:03:01.2]} 3... e6 {[%clk 0:03:01.1]}
4. c3 {[%clk 0:02:58.5]} 4... c5 {[%clk 0:03:01.3]} 5. dxc5 {[%clk 0:02:59.1]}
5... Bxc5 {[%clk 0:03:01.7]} 6. b4 {[%clk 0:03:00.1]} 6... Be7 {[%clk
0:03:02.1]} 7. Bb2 {[%clk 0:03:01.1]} 7... O-O {[%clk 0:03:02.4]} 8. a3 {[%clk
0:03:02]} 8... a5 {[%clk 0:03:00.2]} 9. Nbd2 {[%clk 0:03:02.8]} 9... Qc7 {[%clk
0:03:00.3]} 10. Ng5 {[%clk 0:02:58]} 10... Nc6 {[%clk 0:02:55]} 11. Bd3 {[%clk
0:02:54.5]} 11... e5 {[%clk 0:02:50.1]} 12. b5 {[%clk 0:02:49.1]} 12... Nb8
{[%clk 0:02:49.4]} 13. c4 {[%clk 0:02:45.6]} 13... Bg4 {[%clk 0:02:32.2]} 14.
Ngf3 {[%clk 0:02:37.4]} 14... e4 {[%clk 0:02:30]} 15. Be5 {[%clk 0:02:32.8]}
15... Qd8 {[%clk 0:02:25.8]} 16. Bxb8 {[%clk 0:02:30.4]} 16... Rxb8 {[%clk
0:02:26]} 17. h3 {[%clk 0:02:21.6]} 17... Be6 {[%clk 0:02:26]} 18. cxd5 {[%clk
0:02:18.8]} 18... Bxd5 {[%clk 0:02:27]} 19. Bxe4 {[%clk 0:02:12.6]} 19... Nxe4
{[%clk 0:02:27]} 20. Nxe4 {[%clk 0:02:12.6]} 20... Bxe4 {[%clk 0:02:28.9]} 21.
Qxd8 {[%clk 0:02:13]} 21... Rfxd8 {[%clk 0:02:28.8]} 22. O-O {[%clk 0:02:09.2]}
22... Bxf3 {[%clk 0:02:30]} 23. gxf3 {[%clk 0:02:09.8]} 23... a4 {[%clk
0:02:31.9]} 24. Rfd1 {[%clk 0:02:06.8]} 24... Rxd1+ {[%clk 0:02:32.2]} 25. Rxd1
{[%clk 0:02:07.3]} 25... b6 {[%clk 0:02:32.6]} 26. Rd7 {[%clk 0:02:06.2]} 26...
Bxa3 {[%clk 0:02:32.3]} 27. Rd4 {[%clk 0:02:06.4]} 27... Ra8 {[%clk 0:02:32.2]}
28. Rc4 {[%clk 0:02:04.5]} 28... Bc5 {[%clk 0:02:32.7]} 29. e4 {[%clk
0:02:03.6]} 29... a3 {[%clk 0:02:33.8]} 30. Rxc5 {[%clk 0:02:01.3]} 30... bxc5
{[%clk 0:02:34.4]} 0-1

[Event "*** MasterClass Titled Tuesday Blitz"]
[Site "Chess.com"]
[Date "2017.12.05"]
[Round "1"]
[White "alper1979"]
[Black "LastHeroJr"]
[Result "0-1"]
[WhiteElo "1327"]
[BlackElo "2415"]
[TimeControl "180+2"]
[EndTime "14:19:05 PST"]
[Termination "LastHeroJr won by resignation"]

1. d4 {[%clk 0:03:01.3]} 1... Nf6 {[%clk 0:03:00.7]} 2. Nc3 {[%clk 0:03:00.5]}
2... g6 {[%clk 0:02:59.5]} 3. e4 {[%clk 0:02:59.3]} 3... d6 {[%clk 0:03:00.7]}
4. f4 {[%clk 0:02:59.2]} 4... Bg7 {[%clk 0:03:01.2]} 5. Nf3 {[%clk 0:02:54]}
5... O-O {[%clk 0:03:01.8]} 6. Bd3 {[%clk 0:02:51.9]} 6... Nc6 {[%clk
0:03:02.5]} 7. Be3 {[%clk 0:02:50.6]} 7... e5 {[%clk 0:02:55.6]} 8. f5 {[%clk
0:02:45.1]} 8... exd4 {[%clk 0:02:52]} 9. Nxd4 {[%clk 0:02:41.6]} 9... d5 {[%clk
0:02:26.8]} 10. e5 {[%clk 0:02:33.8]} 10... Nxe5 {[%clk 0:02:26.2]} 11. fxg6
{[%clk 0:02:27.2]} 11... c5 {[%clk 0:02:11.9]} 12. gxh7+ {[%clk 0:02:21.9]}
12... Kh8 {[%clk 0:02:11.5]} 13. Nf5 {[%clk 0:02:13.3]} 13... Bxf5 {[%clk
0:02:04.3]} 14. Bxf5 {[%clk 0:02:07.7]} 14... d4 {[%clk 0:02:04.5]} 15. Bxd4
{[%clk 0:01:49.4]} 15... cxd4 {[%clk 0:02:04.5]} 16. Ne4 {[%clk 0:01:45.6]}
16... Nxe4 {[%clk 0:02:01.5]} 17. Bxe4 {[%clk 0:01:44.2]} 17... Qh4+ {[%clk
0:01:59.3]} 18. Kd2 {[%clk 0:01:34.9]} 0-1

[Event "*** MasterClass Titled Tuesday Blitz"]
[Site "Chess.com"]
[Date "2017.12.05"]
[Round "1"]
[White "Hunninn"]
[Black "CAMIRIX"]
[Result "1-0"]
[WhiteElo "2410"]
[BlackElo "1319"]
[TimeControl "180+2"]
[EndTime "14:19:20 PST"]
[Termination "Hunninn won by resignation"]

1. d4 {[%clk 0:02:55.9]} 1... e6 {[%clk 0:03:00.6]} 2. Nf3 {[%clk 0:02:56.7]}
2... d5 {[%clk 0:03:01.6]} 3. Bg5 {[%clk 0:02:57.7]} 3... Be7 {[%clk 0:03:01.8]}
4. h4 {[%clk 0:02:57.6]} 4... f6 {[%clk 0:03:00.2]} 5. Bf4 {[%clk 0:02:57.1]}
5... Nc6 {[%clk 0:03:00.9]} 6. e3 {[%clk 0:02:57.6]} 6... Bd7 {[%clk 0:02:59.6]}
7. c3 {[%clk 0:02:58.1]} 7... f5 {[%clk 0:02:59.9]} 8. Ne5 {[%clk 0:02:53.3]}
8... Nf6 {[%clk 0:02:58.3]} 9. Nd2 {[%clk 0:02:51.6]} 9... O-O {[%clk
0:02:58.4]} 10. Bd3 {[%clk 0:02:50.6]} 10... Bd6 {[%clk 0:02:58.5]} 11. Bg3
{[%clk 0:02:48.7]} 11... a6 {[%clk 0:02:55.9]} 12. f4 {[%clk 0:02:48.8]} 12...
Ne4 {[%clk 0:02:54.6]} 13. Bxe4 {[%clk 0:02:48.6]} 13... dxe4 {[%clk 0:02:55.7]}
14. Qb3 {[%clk 0:02:44.3]} 14... Bc8 {[%clk 0:02:52.5]} 15. Nxc6 {[%clk
0:02:42.6]} 15... bxc6 {[%clk 0:02:52.8]} 16. Qc4 {[%clk 0:02:43.7]} 16... Bd7
{[%clk 0:02:50.9]} 17. h5 {[%clk 0:02:44]} 17... h6 {[%clk 0:02:48.3]} 18. Bh4
{[%clk 0:02:42.9]} 18... Be7 {[%clk 0:02:46]} 19. Bxe7 {[%clk 0:02:41.3]} 19...
Qxe7 {[%clk 0:02:46.9]} 20. Nb3 {[%clk 0:02:42.4]} 20... Be8 {[%clk 0:02:36.7]}
21. Kf2 {[%clk 0:02:37.4]} 21... Bf7 {[%clk 0:02:37]} 22. Qxc6 {[%clk
0:02:36.8]} 22... Qd8 {[%clk 0:02:35.4]} 23. Nc5 {[%clk 0:02:36.6]} 23... Re8
{[%clk 0:02:35.6]} 24. Rad1 {[%clk 0:02:24.5]} 24... Qb8 {[%clk 0:02:34.6]} 25.
b3 {[%clk 0:02:23.7]} 25... a5 {[%clk 0:02:33.3]} 26. Nd7 {[%clk 0:02:21.4]}
26... Qd8 {[%clk 0:02:32.3]} 27. Ne5 {[%clk 0:02:22.1]} 27... Rf8 {[%clk
0:02:32.1]} 28. d5 {[%clk 0:02:20.2]} 28... Qe7 {[%clk 0:02:30.9]} 29. d6 {[%clk
0:02:17.1]} 29... cxd6 {[%clk 0:02:31.5]} 30. Qxd6 {[%clk 0:02:18.4]} 30... Qxd6
{[%clk 0:02:31.8]} 31. Rxd6 {[%clk 0:02:18.5]} 31... Rad8 {[%clk 0:02:32.8]} 32.
Rhd1 {[%clk 0:02:18.7]} 32... Bxh5 {[%clk 0:02:32.2]} 33. Rxd8 {[%clk
0:02:17.7]} 33... Rxd8 {[%clk 0:02:33.1]} 34. Rxd8+ {[%clk 0:02:14.4]} 34... Kh7
{[%clk 0:02:33.8]} 35. b4 {[%clk 0:02:15.9]} 35... axb4 {[%clk 0:02:31.1]} 36.
cxb4 {[%clk 0:02:17.8]} 36... Bd1 {[%clk 0:02:31.7]} 37. b5 {[%clk 0:02:18.4]}
37... Ba4 {[%clk 0:02:33.1]} 38. b6 {[%clk 0:02:18.9]} 38... Bc2 {[%clk
0:02:28.4]} 1-0

[Event "*** MasterClass Titled Tuesday Blitz"]
[Site "Chess.com"]
[Date "2017.12.05"]
[Round "1"]
[White "hermionegrangermagic"]
[Black "fredjust"]
[Result "1-0"]
[WhiteElo "2415"]
[BlackElo "1322"]
[TimeControl "180+2"]
[EndTime "14:19:31 PST"]
[Termination "hermionegrangermagic won by checkmate"]

1. e4 {[%clk 0:02:41.6]} 1... b6 {[%clk 0:02:59.4]} 2. d4 {[%clk 0:02:41.2]}
2... Bb7 {[%clk 0:02:56.7]} 3. Nc3 {[%clk 0:02:43.1]} 3... e6 {[%clk 0:02:55]}
4. h4 {[%clk 0:02:41]} 4... Bb4 {[%clk 0:02:55.1]} 5. Bd3 {[%clk 0:02:40.3]}
5... Nf6 {[%clk 0:02:54.6]} 6. Qe2 {[%clk 0:02:39.4]} 6... d5 {[%clk 0:02:54]}
7. e5 {[%clk 0:02:37.5]} 7... Ne4 {[%clk 0:02:54.4]} 8. Bd2 {[%clk 0:02:38.2]}
8... Nxd2 {[%clk 0:02:54.9]} 9. Qxd2 {[%clk 0:02:39.3]} 9... c5 {[%clk
0:02:49.2]} 10. a3 {[%clk 0:02:39.9]} 10... cxd4 {[%clk 0:02:48.2]} 11. axb4
{[%clk 0:02:40.3]} 11... dxc3 {[%clk 0:02:49.3]} 12. bxc3 {[%clk 0:02:41.5]}
12... O-O {[%clk 0:02:47.4]} 13. h5 {[%clk 0:02:40.3]} 13... d4 {[%clk
0:02:46.9]} 14. Nf3 {[%clk 0:02:38.7]} 14... dxc3 {[%clk 0:02:44.3]} 15. Qf4
{[%clk 0:02:39.4]} 15... f6 {[%clk 0:02:21.7]} 16. h6 {[%clk 0:02:37.8]} 16...
fxe5 {[%clk 0:02:17.4]} 17. Qxe5 {[%clk 0:02:38.3]} 17... Qf6 {[%clk 0:02:11.9]}
18. hxg7 {[%clk 0:02:26.8]} 18... Qxe5+ {[%clk 0:01:53.9]} 19. Nxe5 {[%clk
0:02:28.7]} 19... Bxg2 {[%clk 0:01:30.1]} 20. gxf8=Q+ {[%clk 0:02:26]} 20...
Kxf8 {[%clk 0:01:30.9]} 21. Rxh7 {[%clk 0:02:26.5]} 21... Bd5 {[%clk 0:01:23.7]}
22. O-O-O {[%clk 0:02:26.5]} 22... Nc6 {[%clk 0:01:21.6]} 23. Rf7+ {[%clk
0:02:25.7]} 23... Ke8 {[%clk 0:01:21.1]} 24. Rg1 {[%clk 0:02:26.2]} 24... Ne7
{[%clk 0:01:18.4]} 25. Rgg7 {[%clk 0:02:26.3]} 25... Kd8 {[%clk 0:01:14.9]} 26.
Rxe7 {[%clk 0:02:26.9]} 26... Kc8 {[%clk 0:01:03.7]} 27. Re8# {[%clk 0:02:27.1]}
1-0

[Event "*** MasterClass Titled Tuesday Blitz"]
[Site "Chess.com"]
[Date "2017.12.05"]
[Round "1"]
[White "TheBigBoss04"]
[Black "Jamaladam12200620"]
[Result "1-0"]
[WhiteElo "2511"]
[BlackElo "1965"]
[TimeControl "180+2"]
[EndTime "14:19:41 PST"]
[Termination "TheBigBoss04 won by resignation"]

1. d4 {[%clk 0:03:01.9]} 1... Nf6 {[%clk 0:03:00.2]} 2. c4 {[%clk 0:03:02.6]}
2... e6 {[%clk 0:02:58.4]} 3. Nc3 {[%clk 0:03:03.8]} 3... d5 {[%clk 0:02:59]} 4.
cxd5 {[%clk 0:03:04.1]} 4... exd5 {[%clk 0:02:59.6]} 5. Bg5 {[%clk 0:03:04.8]}
5... c6 {[%clk 0:02:58.6]} 6. Qc2 {[%clk 0:03:04.1]} 6... Nbd7 {[%clk 0:02:52]}
7. e3 {[%clk 0:03:04.9]} 7... Bd6 {[%clk 0:02:50.8]} 8. Bd3 {[%clk 0:03:05.6]}
8... O-O {[%clk 0:02:49.4]} 9. Nge2 {[%clk 0:03:05.7]} 9... h6 {[%clk
0:02:42.8]} 10. Bh4 {[%clk 0:03:05.4]} 10... Re8 {[%clk 0:02:40]} 11. O-O {[%clk
0:03:04.8]} 11... Nf8 {[%clk 0:02:40.3]} 12. Rad1 {[%clk 0:03:01.6]} 12... Bg4
{[%clk 0:02:39.5]} 13. f3 {[%clk 0:03:00.9]} 13... Rxe3 {[%clk 0:02:16.1]} 14.
fxg4 {[%clk 0:02:56.7]} 14... Bxh2+ {[%clk 0:02:15.9]} 15. Kh1 {[%clk
0:02:57.8]} 15... Bc7 {[%clk 0:02:07.6]} 16. Bxf6 {[%clk 0:02:54.8]} 16... gxf6
{[%clk 0:02:04]} 17. Qd2 {[%clk 0:02:54.7]} 17... Qd6 {[%clk 0:01:59.3]} 18. g3
{[%clk 0:02:50.5]} 18... Rae8 {[%clk 0:01:59.6]} 19. Rf2 {[%clk 0:02:39]} 19...
Qe6 {[%clk 0:01:30.9]} 20. Bf5 {[%clk 0:02:37.5]} 20... Qd6 {[%clk 0:01:31.6]}
21. Rdf1 {[%clk 0:02:36.3]} 21... b5 {[%clk 0:01:23.3]} 22. Nd1 {[%clk
0:02:30.5]} 22... Rxg3 {[%clk 0:01:19.6]} 23. Nxg3 {[%clk 0:02:28.7]} 23... Qxg3
{[%clk 0:01:20]} 24. Qxh6 {[%clk 0:02:29.5]} 24... Re3 {[%clk 0:01:10]} 25. Nxe3
{[%clk 0:02:27.8]} 1-0